[Event "WYCC 2018 G14"]
[Site "Halkidiki"]
[Date "2018.10.26"]
[Round "7"]
[White "Guillo Longares, Cecilia"]
[Black "Arauco Celestino, Arianna Sofia"]
[Result "0-1"]
[ECO "A57"]
[WhiteElo "1998"]
[BlackElo "1610"]
[Annotator "NA"]
[PlyCount "96"]
[EventDate "2018.10.20"]
[EventType "swiss"]
[EventCountry "GRE"]
[SourceTitle "playchess.com"]
[Source "ChessBase"]
[SourceQuality "1"]
[TimeControl "40/5400+30:1800+30"]

1. d4 {[%emt 0:00:00]} Nf6 {[%emt 0:00:00]} 2. c4 {[%emt 0:00:00]} c5 {[%emt 0:00:00]} 3. d5 {[%emt 0:00:00]} b5 {[%emt 0:00:00]} 4. Qc2 {[%emt 0:00:00]} Na6 {[%emt 0:00:10]} 5. a3 {[%emt 0:00:59]} Qa5+ {[%emt 0:00:27]} 6. Bd2 {[%emt 0:01:04]} b4 {[%emt 0:00:11]} 7. e4 {[%emt 0:00:59]} d6 {[%emt 0:00:39]} 8. Bd3 {[%emt 0:01:06]} g6 {[%emt 0:02:30]} 9. Ne2 {[%emt 0:03:58]} Bg7 {[%emt 0:01:41]} 10. O-O {[%emt 0:00:09]} Qb6 {[%emt 0:11:24]} 11. a4 {[%emt 0:06:48]} Nd7 {[%emt 0:13:59]} 12. f4 {[%emt 0:04:10]} b3 {[%emt 0:02:02]} 13. Qc1 {[%emt 0:00:08]} Nb4 {[%emt 0:00:29]} 14. Bxb4 {[%emt 0:01:16]} cxb4+ {[%emt 0:01:24]} 15. Kh1 {[%emt 0:00:07]} Nc5 {[%emt 0:00:07]} 16. a5 {[%emt 0:05:13]} Qd8 {[%emt 0:01:25]} 17. Qd2 {[%emt 0:01:36]} Rb8 {[%emt 0:07:04]} 18. Nc1 {[%emt 0:06:32]} Qc7 {[%emt 0:00:50]} 19. Qf2 {[%emt 0:10:09]} Nxd3 {[%emt 0:02:59]} 20. Nxd3 {[%emt 0:00:05]} Qxc4 {[%emt 0:00:23]} 21. Qe3 {[%emt 0:01:20]} Bd4 {[%emt 0:15:18]} 22. Qd2 {[%emt 0:05:49]} Ba6 {[%emt 0:03:17]} 23. Rf3 {[%emt 0:02:02]} Qc2 {[%emt 0:08:05]} 24. Ne1 {[%emt 0:03:12]} Qxb2 {[%emt 0:02:47]} 25. Ra4 {[%emt 0:01:13]} Qxd2 {[%emt 0:00:31]} 26. Nxd2 {[%emt 0:00:10]} Bc3 {[%emt 0:00:08]} 27. Nxb3 {[%emt 0:01:12]} Bc4 {[%emt 0:03:57]} 28. Rxc3 {[%emt 0:01:09]} bxc3 {[%emt 0:00:05]} 29. Rxc4 {[%emt 0:00:03]} Rxb3 {[%emt 0:00:04]} 30. Kg1 {[%emt 0:01:31]} Kd7 {[%emt 0:00:40]} 31. Kf2 {[%emt 0:00:21]} Rc8 {[%emt 0:01:00]} 32. Rxc8 {[%emt 0:00:12]} Kxc8 {[%emt 0:00:04]} 33. Ke3 {[%emt 0:00:09]} Kb7 {[%emt 0:02:41]} 34. Kd3 {[%emt 0:00:46]} Ka6 {[%emt 0:03:45]} 35. Kc4 {[%emt 0:00:29]} Ra3 {[%emt 0:01:55]} 36. Nc2 {[%emt 0:00:15]} Ra4+ {[%emt 0:00:13]} 37. Kxc3 {[%emt 0:00:58]} Rxe4 {[%emt 0:00:15]} 38. Nb4+ {[%emt 0:01:18]} Kxa5 {[%emt 0:00:39]} 39. Nc6+ {[%emt 0:00:16]} Kb6 {[%emt 0:00:11]} 40. g3 {[%emt 0:00:00]} a5 {[%emt 0:00:00]} 41. Kd3 {[%emt 0:00:25]} f5 {[%emt 0:00:32]} 42. g4 {[%emt 0:01:47]} Rxf4 {[%emt 0:01:18]} 43. gxf5 {[%emt 0:00:16]} Rxf5 {[%emt 0:00:21]} 44. Nxe7 {[%emt 0:00:07]} Re5 {[%emt 0:00:06]} 45. Nc8+ {[%emt 0:00:22]} Kc7 {[%emt 0:00:56]} 46. Na7 {[%emt 0:00:05]} Rxd5+ {[%emt 0:00:06]} 47. Kc4 {[%emt 0:00:10]} Rc5+ {[%emt 0:00:04]} 48. Kd4 {[%emt 0:00:05]} Kb7 {[%emt 0:00:09]} 0-1

[Event "WYCC 2018 G14"]
[Site "Halkidiki"]
[Date "2018.10.26"]
[Round "7"]
[White "Eizaguerri Floris, Maria"]
[Black "Baiburina, Kamilla"]
[Result "1-0"]
[ECO "B07"]
[WhiteElo "1987"]
[BlackElo "1907"]
[Annotator "NA"]
[PlyCount "65"]
[EventDate "2018.10.20"]
[EventType "swiss"]
[EventCountry "GRE"]
[SourceTitle "playchess.com"]
[Source "ChessBase"]
[SourceQuality "1"]
[TimeControl "40/5400+30:1800+30"]

1. e4 {[%emt 0:00:00]} d6 {[%emt 0:00:00]} 2. d4 {[%emt 0:00:00]} Nf6 {[%emt 0:00:00]} 3. Nc3 {[%emt 0:00:00]} Nbd7 {[%emt 0:00:00]} 4. Nf3 {[%emt 0:00:01]} e5 {[%emt 0:00:00]} 5. Bc4 {[%emt 0:00:12]} Be7 {[%emt 0:00:02]} 6. a4 {[%emt 0:00:06]} a5 {[%emt 0:00:15]} 7. Ng5 {[%emt 0:00:12]} O-O {[%emt 0:09:21]} 8. Bxf7+ {[%emt 0:00:09]} Rxf7 {[%emt 0:00:43]} 9. Ne6 {[%emt 0:00:08]} Qe8 {[%emt 0:00:03]} 10. Nxc7 {[%emt 0:00:05]} Qd8 {[%emt 0:00:20]} 11. Nxa8 {[%emt 0:00:05]} b6 {[%emt 0:04:37]} 12. Nb5 {[%emt 0:00:08]} Ne8 {[%emt 0:13:24]} 13. dxe5 {[%emt 0:01:02]} Nxe5 {[%emt 0:03:07]} 14. Be3 {[%emt 0:02:41]} Nc4 {[%emt 0:09:36]} 15. Bd4 {[%emt 0:19:26]} Be6 {[%emt 0:08:41]} 16. Nxb6 {[%emt 0:04:02]} Nxb6 {[%emt 0:00:48]} 17. O-O {[%emt 0:00:39]} Nd7 {[%emt 0:06:34]} 18. Bc3 {[%emt 0:14:26]} Nc5 {[%emt 0:03:05]} 19. Qe2 {[%emt 0:07:13]} Qa8 {[%emt 0:03:16]} 20. f3 {[%emt 0:02:30]} Bf8 {[%emt 0:03:44]} 21. Rfd1 {[%emt 0:04:51]} Nb7 {[%emt 0:03:25]} 22. Nd4 {[%emt 0:09:31]} Bd7 {[%emt 0:04:31]} 23. Qc4 {[%emt 0:00:33]} Nc5 {[%emt 0:02:52]} 24. Be1 {[%emt 0:04:00]} Qa7 {[%emt 0:04:04]} 25. Bf2 {[%emt 0:02:36]} Be7 {[%emt 0:04:16]} 26. Nb3 {[%emt 0:08:27]} Qc7 {[%emt 0:02:00]} 27. Nxc5 {[%emt 0:07:41]} dxc5 {[%emt 0:00:15]} 28. e5 {[%emt 0:02:39]} Bc8 {[%emt 0:01:37]} 29. e6 {[%emt 0:01:43]} Rf8 {[%emt 0:01:16]} 30. Rd7 {[%emt 0:01:03]} Bxd7 {[%emt 0:00:37]} 31. exd7+ {[%emt 0:00:05]} Kh8 {[%emt 0:00:20]} 32. dxe8=Q {[%emt 0:00:11]} Rxe8 {[%emt 0:00:06]} 33. Re1 {[%emt 0:03:29]} 1-0

[Event "WYCC 2018 G14"]
[Site "Halkidiki"]
[Date "2018.10.26"]
[Round "7"]
[White "Stepanyan, Eva"]
[Black "Dylag, Emilia"]
[Result "1-0"]
[ECO "B90"]
[WhiteElo "1981"]
[BlackElo "2059"]
[Annotator "NA"]
[PlyCount "73"]
[EventDate "2018.10.20"]
[EventType "swiss"]
[EventCountry "GRE"]
[SourceTitle "playchess.com"]
[Source "ChessBase"]
[SourceQuality "1"]
[TimeControl "40/5400+30:1800+30"]

1. e4 {[%emt 0:00:00]} c5 {[%emt 0:00:00]} 2. Nf3 {[%emt 0:00:00]} d6 {[%emt 0:00:00]} 3. d4 {[%emt 0:00:00]} cxd4 {[%emt 0:00:00]} 4. Nxd4 {[%emt 0:00:00]} Nf6 {[%emt 0:00:14]} 5. Nc3 {[%emt 0:00:00]} a6 {[%emt 0:00:12]} 6. f3 {[%emt 0:00:17]} e5 {[%emt 0:00:39]} 7. Nb3 {[%emt 0:00:15]} Be6 {[%emt 0:02:19]} 8. Be3 {[%emt 0:00:25]} Be7 {[%emt 0:00:53]} 9. Qd2 {[%emt 0:00:13]} O-O {[%emt 0:00:30]} 10. O-O-O {[%emt 0:00:08]} a5 {[%emt 0:00:35]} 11. a4 {[%emt 0:00:44]} Nc6 {[%emt 0:01:18]} 12. g4 {[%emt 0:00:37]} Nb4 {[%emt 0:02:10]} 13. Kb1 {[%emt 0:00:10]} Qc7 {[%emt 0:18:49]} 14. g5 {[%emt 0:01:48]} Nd7 {[%emt 0:05:25]} 15. Qf2 {[%emt 0:10:05]} Rfc8 {[%emt 0:06:17]} 16. Bb5 {[%emt 0:05:18]} f5 {[%emt 0:17:40]} 17. gxf6 {[%emt 0:03:18]} Nxf6 {[%emt 0:04:29]} 18. Bb6 {[%emt 0:10:29]} Qb8 {[%emt 0:00:14]} 19. Bxa5 {[%emt 0:04:49]} Rxa5 {[%emt 0:09:13]} 20. Nxa5 {[%emt 0:00:38]} Bd8 {[%emt 0:00:43]} 21. Nb3 {[%emt 0:02:17]} d5 {[%emt 0:02:44]} 22. exd5 {[%emt 0:03:53]} Bf5 {[%emt 0:04:37]} 23. Na1 {[%emt 0:10:22]} Qd6 {[%emt 0:04:15]} 24. Rd2 {[%emt 0:06:09]} Bb6 {[%emt 0:03:33]} 25. Qe2 {[%emt 0:01:21]} Bd4 {[%emt 0:02:35]} 26. Bc4 {[%emt 0:11:22]} Bxc3 {[%emt 0:05:41]} 27. bxc3 {[%emt 0:00:23]} Na6 {[%emt 0:02:09]} 28. Nb3 {[%emt 0:03:49]} Kh8 {[%emt 0:01:01]} 29. Re1 {[%emt 0:04:09]} e4 {[%emt 0:02:05]} 30. Rd4 {[%emt 0:01:26]} Nc5 {[%emt 0:02:52]} 31. Nxc5 {[%emt 0:01:39]} Qxc5 {[%emt 0:01:23]} 32. fxe4 {[%emt 0:00:23]} Bg6 {[%emt 0:00:40]} 33. Qd2 {[%emt 0:05:12]} Qb6+ {[%emt 0:00:35]} 34. Bb5 {[%emt 0:00:48]} Qa5 {[%emt 0:00:37]} 35. Kb2 {[%emt 0:00:55]} Ne8 {[%emt 0:00:31]} 36. d6 {[%emt 0:01:02]} Rd8 {[%emt 0:00:28]} 37. e5 {[%emt 0:01:01]} 1-0

[Event "WYCC 2018 G14"]
[Site "Halkidiki"]
[Date "2018.10.26"]
[Round "7"]
[White "Ziegenfuss, Antonia"]
[Black "Allahverdiyeva, Ayan"]
[Result "0-1"]
[ECO "E20"]
[WhiteElo "1969"]
[BlackElo "2116"]
[Annotator "NA"]
[PlyCount "54"]
[EventDate "2018.10.20"]
[EventType "swiss"]
[EventCountry "GRE"]
[SourceTitle "playchess.com"]
[Source "ChessBase"]
[SourceQuality "1"]
[TimeControl "40/5400+30:1800+30"]

1. d4 {[%emt 0:00:00]} e6 {[%emt 0:01:17]} 2. c4 {[%emt 0:00:00]} Nf6 {[%emt 0:04:39]} 3. Nc3 {[%emt 0:00:00]} Bb4 {[%emt 0:00:10]} 4. f3 {[%emt 0:00:09]} c5 {[%emt 0:00:06]} 5. d5 {[%emt 0:00:11]} O-O {[%emt 0:00:07]} 6. e4 {[%emt 0:00:42]} d6 {[%emt 0:00:08]} 7. Nge2 {[%emt 0:09:20]} a6 {[%emt 0:00:56]} 8. Nf4 {[%emt 0:01:40]} exd5 {[%emt 0:05:59]} 9. cxd5 {[%emt 0:05:05]} b5 {[%emt 0:00:13]} 10. a4 {[%emt 0:03:29]} Ba5 {[%emt 0:01:22]} 11. Bd2 {[%emt 0:10:31]} c4 {[%emt 0:00:58]} 12. Nb1 {[%emt 0:16:12]} Bb7 {[%emt 0:07:09]} 13. Bxa5 {[%emt 0:04:04]} Qxa5+ {[%emt 0:00:06]} 14. Qd2 {[%emt 0:00:57]} Qc7 {[%emt 0:01:18]} 15. axb5 {[%emt 0:03:31]} axb5 {[%emt 0:00:38]} 16. Rxa8 {[%emt 0:01:01]} Bxa8 {[%emt 0:00:04]} 17. Qb4 {[%emt 0:04:19]} Qb6 {[%emt 0:03:22]} 18. Na3 {[%emt 0:03:58]} Nbd7 {[%emt 0:01:15]} 19. Be2 {[%emt 0:03:38]} Ne5 {[%emt 0:09:30]} 20. Qd2 {[%emt 0:08:16]} Bb7 {[%emt 0:14:08]} 21. Nh3 {[%emt 0:03:10]} Ra8 {[%emt 0:21:13]} 22. Nf2 {[%emt 0:01:43]} Qc5 {[%emt 0:04:50]} 23. O-O {[%emt 0:02:37]} c3 {[%emt 0:00:44]} 24. Qc2 {[%emt 0:03:36]} b4 {[%emt 0:02:07]} 25. Nb1 {[%emt 0:04:55]} Ra2 {[%emt 0:00:23]} 26. Re1 {[%emt 0:04:22]} Rxb2 {[%emt 0:00:32]} 27. Qc1 {[%emt 0:00:14]} Nc4 {[%emt 0:01:45]} 0-1

[Event "WYCC 2018 G14"]
[Site "Halkidiki"]
[Date "2018.10.26"]
[Round "7"]
[White "Zhu, Evelyn"]
[Black "Mehmed, Elif"]
[Result "1/2-1/2"]
[ECO "E81"]
[WhiteElo "1926"]
[BlackElo "2049"]
[Annotator "NA"]
[PlyCount "153"]
[EventDate "2018.10.20"]
[EventType "swiss"]
[EventCountry "GRE"]
[SourceTitle "playchess.com"]
[Source "ChessBase"]
[SourceQuality "1"]
[TimeControl "40/5400+30:1800+30"]

1. d4 {[%emt 0:00:00]} Nf6 {[%emt 0:00:00]} 2. c4 {[%emt 0:00:00]} g6 {[%emt 0:00:00]} 3. Nc3 {[%emt 0:00:00]} Bg7 {[%emt 0:00:06]} 4. e4 {[%emt 0:00:04]} d6 {[%emt 0:00:04]} 5. f3 {[%emt 0:00:04]} O-O {[%emt 0:00:23]} 6. Be3 {[%emt 0:00:03]} c5 {[%emt 0:00:16]} 7. Nge2 {[%emt 0:00:23]} Nc6 8. d5 {[%emt 0:00:14]} Na5 {[%emt 0:06:26]} 9. Ng3 {[%emt 0:02:37]} e6 {[%emt 0:05:37]} 10. e5 {[%emt 0:10:25]} Nd7 {[%emt 0:18:46]} 11. exd6 {[%emt 0:06:07]} Qb6 {[%emt 0:08:50]} 12. Qd2 {[%emt 0:05:02]} exd5 {[%emt 0:16:31]} 13. Nxd5 {[%emt 0:08:53]} Qxb2 {[%emt 0:01:20]} 14. Qxb2 {[%emt 0:02:21]} Bxb2 {[%emt 0:00:05]} 15. Rd1 {[%emt 0:10:48]} f5 {[%emt 0:11:30]} 16. Kf2 {[%emt 0:08:07]} b6 {[%emt 0:11:26]} 17. f4 {[%emt 0:04:52]} Bb7 {[%emt 0:03:07]} 18. Nc7 {[%emt 0:03:30]} Rac8 {[%emt 0:00:23]} 19. Be2 {[%emt 0:00:45]} Bc6 {[%emt 0:02:33]} 20. Rd2 {[%emt 0:02:43]} Bf6 {[%emt 0:02:38]} 21. Rc1 {[%emt 0:02:36]} Rf7 {[%emt 0:03:53]} 22. Bf3 {[%emt 0:09:15]} Bxf3 {[%emt 0:02:49]} 23. Kxf3 {[%emt 0:00:18]} Nb7 {[%emt 0:02:58]} 24. Nb5 {[%emt 0:05:12]} a6 {[%emt 0:01:13]} 25. Na7 {[%emt 0:00:03]} Ra8 {[%emt 0:00:35]} 26. Nc6 {[%emt 0:00:01]} Rc8 {[%emt 0:00:35]} 27. Na7 {[%emt 0:00:20]} Ra8 {[%emt 0:00:06]} 28. Nc6 {[%emt 0:00:08]} Nd8 {[%emt 0:00:17]} 29. Nxd8 {[%emt 0:01:37]} Rxd8 {[%emt 0:00:05]} 30. Rb1 {[%emt 0:01:02]} Bc3 {[%emt 0:00:30]} 31. Rd3 {[%emt 0:01:59]} Bg7 {[%emt 0:00:07]} 32. Ne2 {[%emt 0:01:06]} Rc8 {[%emt 0:00:45]} 33. Ra3 {[%emt 0:01:00]} a5 {[%emt 0:00:31]} 34. Nc3 {[%emt 0:00:14]} Bxc3 {[%emt 0:00:05]} 35. Rxc3 {[%emt 0:00:01]} Rc6 {[%emt 0:00:07]} 36. Rd3 {[%emt 0:00:23]} Rf6 {[%emt 0:00:14]} 37. Rbd1 {[%emt 0:00:19]} Kf7 {[%emt 0:00:44]} 38. Bf2 {[%emt 0:03:41]} Re6 {[%emt 0:01:31]} 39. Bh4 {[%emt 0:02:01]} Rc8 {[%emt 0:00:41]} 40. Be7 {[%emt 0:00:00]} Re8 {[%emt 0:00:00]} 41. Re3 {[%emt 0:12:48]} Rxe3+ {[%emt 0:05:04]} 42. Kxe3 {[%emt 0:00:01]} Rb8 {[%emt 0:07:28]} 43. Rb1 {[%emt 0:01:36]} Nf6 {[%emt 0:16:01]} 44. Bxf6 {[%emt 0:08:00]} Kxf6 {[%emt 0:00:14]} 45. Rd1 {[%emt 0:00:47]} a4 {[%emt 0:00:32]} 46. Kd3 {[%emt 0:06:03]} Ke6 {[%emt 0:01:06]} 47. Kc3 {[%emt 0:00:30]} Kd7 {[%emt 0:01:50]} 48. Rd2 {[%emt 0:04:37]} Re8 {[%emt 0:00:53]} 49. Rb2 {[%emt 0:04:17]} Kc6 {[%emt 0:00:21]} 50. Rd2 {[%emt 0:01:23]} Re3+ {[%emt 0:00:13]} 51. Kb2 {[%emt 0:01:23]} Kd7 {[%emt 0:00:08]} 52. g3 {[%emt 0:01:38]} h6 {[%emt 0:01:23]} 53. Kc2 {[%emt 0:02:09]} Rf3 {[%emt 0:01:04]} 54. Kb2 {[%emt 0:01:05]} h5 {[%emt 0:01:03]} 55. Re2 {[%emt 0:01:51]} Kxd6 {[%emt 0:01:10]} 56. Rd2+ {[%emt 0:00:14]} Kc7 {[%emt 0:00:31]} 57. Re2 {[%emt 0:00:17]} h4 {[%emt 0:00:12]} 58. Re7+ {[%emt 0:00:31]} Kc8 {[%emt 0:00:38]} 59. Re6 {[%emt 0:00:40]} hxg3 {[%emt 0:00:51]} 60. hxg3 {[%emt 0:00:00]} Rxg3 {[%emt 0:00:10]} 61. Rxb6 {[%emt 0:00:06]} Rg4 {[%emt 0:00:22]} 62. Kc3 {[%emt 0:00:43]} Kc7 {[%emt 0:00:34]} 63. Ra6 {[%emt 0:00:07]} Rxf4 {[%emt 0:00:07]} 64. Rxg6 {[%emt 0:00:12]} Rf2 {[%emt 0:00:44]} 65. Rf6 {[%emt 0:01:51]} f4 {[%emt 0:00:47]} 66. Kd3 Rxa2 {[%emt 0:00:35]} 67. Rxf4 {[%emt 0:00:36]} Rb2 {[%emt 0:00:40]} 68. Kc3 {[%emt 0:00:31]} Rb4 69. Rf6 Kb7 {[%emt 0:00:48]} 70. Rh6 {[%emt 0:00:54]} Ka7 {[%emt 0:00:51]} 71. Rg6 {[%emt 0:00:09]} Rb3+ {[%emt 0:00:30]} 72. Kc2 {[%emt 0:00:04]} Rb4 {[%emt 0:00:11]} 73. Kc3 {[%emt 0:00:03]} Rb1 {[%emt 0:00:04]} 74. Kc2 {[%emt 0:00:13]} Rb7 {[%emt 0:00:21]} 75. Rc6 {[%emt 0:00:10]} a3 {[%emt 0:01:13]} 76. Rxc5 {[%emt 0:01:11]} Ka6 77. Rb5 1/2-1/2

[Event "WYCC 2018 G14"]
[Site "Halkidiki"]
[Date "2018.10.26"]
[Round "7"]
[White "Rodriguez Redondo, Adhara"]
[Black "Mrudul Dehankar"]
[Result "0-1"]
[ECO "B84"]
[WhiteElo "1911"]
[BlackElo "1996"]
[Annotator "NA"]
[PlyCount "142"]
[EventDate "2018.10.20"]
[EventType "swiss"]
[EventCountry "GRE"]
[SourceTitle "playchess.com"]
[Source "ChessBase"]
[SourceQuality "1"]
[TimeControl "40/5400+30:1800+30"]

1. e4 {[%emt 0:00:00]} c5 {[%emt 0:00:00]} 2. Nf3 {[%emt 0:00:00]} d6 {[%emt 0:00:00]} 3. d4 {[%emt 0:00:00]} cxd4 {[%emt 0:00:03]} 4. Nxd4 {[%emt 0:00:00]} Nf6 {[%emt 0:00:05]} 5. Nc3 {[%emt 0:00:02]} a6 {[%emt 0:00:05]} 6. Be2 {[%emt 0:00:22]} e6 {[%emt 0:00:06]} 7. O-O {[%emt 0:00:29]} Be7 {[%emt 0:00:27]} 8. a4 {[%emt 0:00:54]} Qc7 {[%emt 0:01:01]} 9. f4 {[%emt 0:01:28]} Nbd7 {[%emt 0:02:40]} 10. Bf3 {[%emt 0:03:00]} O-O {[%emt 0:07:33]} 11. Kh1 {[%emt 0:02:26]} Nc5 {[%emt 0:21:49]} 12. Qe1 {[%emt 0:05:04]} Rd8 {[%emt 0:08:20]} 13. Be3 {[%emt 0:07:23]} Rb8 {[%emt 0:17:53]} 14. g4 {[%emt 0:07:11]} d5 {[%emt 0:05:56]} 15. e5 {[%emt 0:05:39]} Nfe4 {[%emt 0:04:34]} 16. Nxe4 {[%emt 0:18:06]} Nxe4 {[%emt 0:02:45]} 17. c3 {[%emt 0:08:38]} Bd7 {[%emt 0:06:19]} 18. Bxe4 {[%emt 0:05:42]} dxe4 {[%emt 0:00:11]} 19. Qg3 {[%emt 0:01:50]} b5 {[%emt 0:04:06]} 20. axb5 {[%emt 0:01:42]} Bxb5 {[%emt 0:00:33]} 21. Nxb5 {[%emt 0:01:39]} Rxb5 {[%emt 0:00:18]} 22. Qg2 {[%emt 0:04:55]} Qb7 {[%emt 0:02:39]} 23. b4 {[%emt 0:02:12]} Rd3 {[%emt 0:01:47]} 24. Bd2 {[%emt 0:04:44]} Rbd5 {[%emt 0:07:03]} 25. Be1 {[%emt 0:02:10]} Rd8 {[%emt 0:03:01]} 26. Ra2 {[%emt 0:02:30]} Rd1 {[%emt 0:02:04]} 27. Re2 {[%emt 0:02:40]} Rc1 {[%emt 0:00:43]} 28. g5 {[%emt 0:06:33]} Rdd1 {[%emt 0:01:04]} 29. h4 {[%emt 0:03:10]} g6 {[%emt 0:00:39]} 30. Kh2 {[%emt 0:00:56]} Qb5 {[%emt 0:00:37]} 31. Qxe4 {[%emt 0:01:39]} a5 {[%emt 0:00:32]} 32. Rg1 {[%emt 0:02:24]} axb4 {[%emt 0:00:16]} 33. cxb4 {[%emt 0:00:19]} Rc4 {[%emt 0:00:17]} 34. Qa8+ {[%emt 0:00:40]} Rd8 {[%emt 0:00:24]} 35. Qf3 {[%emt 0:00:29]} Rxf4 {[%emt 0:01:35]} 36. Qxf4 {[%emt 0:00:27]} Qxe2+ {[%emt 0:00:00]} 37. Kh1 {[%emt 0:00:34]} Rd7 {[%emt 0:00:27]} 38. Rf1 {[%emt 0:00:27]} Bd8 {[%emt 0:00:14]} 39. Bg3 {[%emt 0:00:28]} Bb6 {[%emt 0:00:22]} 40. Qf3 {[%emt 0:00:00]} Qc4 {[%emt 0:00:00]} 41. Qf4 {[%emt 0:07:47]} Qd5+ {[%emt 0:05:05]} 42. Qf3 {[%emt 0:01:05]} Qb5 {[%emt 0:01:12]} 43. Qf4 {[%emt 0:10:02]} Bd4 {[%emt 0:03:50]} 44. Rc1 {[%emt 0:01:25]} Qb7+ {[%emt 0:01:19]} 45. Kh2 {[%emt 0:00:58]} Rd5 {[%emt 0:03:44]} 46. Qf3 {[%emt 0:03:21]} Qb8 {[%emt 0:04:50]} 47. Rf1 {[%emt 0:02:06]} Qc7 {[%emt 0:00:27]} 48. Re1 {[%emt 0:01:53]} Qc4 {[%emt 0:06:51]} 49. Rf1 {[%emt 0:05:23]} Rd7 {[%emt 0:00:31]} 50. Qa8+ {[%emt 0:01:35]} Kg7 {[%emt 0:00:09]} 51. Qf3 {[%emt 0:00:30]} Qxb4 {[%emt 0:00:57]} 52. Kh3 {[%emt 0:00:29]} Qc5 {[%emt 0:02:39]} 53. Qf4 {[%emt 0:00:31]} Kg8 {[%emt 0:01:56]} 54. Rb1 {[%emt 0:00:30]} Qc7 {[%emt 0:00:40]} 55. Re1 {[%emt 0:00:30]} Rd5 {[%emt 0:00:26]} 56. Re2 {[%emt 0:00:25]} Qc3 {[%emt 0:00:38]} 57. Re4 {[%emt 0:00:32]} Qd3 {[%emt 0:00:27]} 58. Kg4 {[%emt 0:00:34]} Bxe5 {[%emt 0:01:43]} 59. Rxe5 {[%emt 0:00:30]} Rd4 {[%emt 0:00:06]} 60. Qxd4 {[%emt 0:00:21]} Qxd4+ {[%emt 0:00:06]} 61. Kf3 {[%emt 0:00:35]} h6 {[%emt 0:00:45]} 62. Re4 {[%emt 0:00:34]} Qd1+ {[%emt 0:00:25]} 63. Kf4 {[%emt 0:00:29]} Qf1+ {[%emt 0:00:15]} 64. Ke3 {[%emt 0:00:30]} hxg5 {[%emt 0:00:06]} 65. hxg5 {[%emt 0:00:24]} Qc1+ {[%emt 0:00:04]} 66. Kf3 {[%emt 0:00:10]} Qxg5 {[%emt 0:00:04]} 67. Re5 {[%emt 0:00:36]} Qd2 {[%emt 0:00:21]} 68. Bf4 {[%emt 0:00:22]} Qd3+ {[%emt 0:00:13]} 69. Kg4 {[%emt 0:00:24]} f6 {[%emt 0:00:12]} 70. Rc5 {[%emt 0:00:33]} Qe2+ {[%emt 0:00:28]} 71. Kg3 {[%emt 0:00:06]} g5 {[%emt 0:00:07]} 0-1

[Event "WYCC 2018 G14"]
[Site "Halkidiki"]
[Date "2018.10.26"]
[Round "7"]
[White "Ehsani, Yassamin"]
[Black "Matus, Nastassja"]
[Result "0-1"]
[ECO "B10"]
[WhiteElo "1875"]
[BlackElo "1983"]
[Annotator "NA"]
[PlyCount "28"]
[EventDate "2018.10.20"]
[EventType "swiss"]
[EventCountry "GRE"]
[SourceTitle "playchess.com"]
[Source "ChessBase"]
[SourceQuality "1"]
[TimeControl "40/5400+30:1800+30"]

1. e4 {[%emt 0:00:00]} c6 {[%emt 0:00:00]} 2. Ne2 {[%emt 0:00:00]} d5 {[%emt 0:00:48]} 3. e5 {[%emt 0:00:06]} Bf5 {[%emt 0:14:33]} 4. Ng3 {[%emt 0:01:57]} Bg6 {[%emt 0:02:23]} 5. h4 {[%emt 0:01:21]} h6 {[%emt 0:05:46]} 6. h5 {[%emt 0:01:56]} Bh7 {[%emt 0:00:53]} 7. e6 {[%emt 0:02:37]} Qd6 {[%emt 0:04:51]} 8. exf7+ {[%emt 0:06:03]} Kxf7 {[%emt 0:00:28]} 9. d4 {[%emt 0:04:12]} e5 {[%emt 0:10:38]} 10. c4 {[%emt 0:06:32]} exd4 {[%emt 0:05:09]} 11. Qxd4 {[%emt 0:04:43]} Nf6 {[%emt 0:03:37]} 12. Bf4 {[%emt 0:09:57]} Qe6+ {[%emt 0:12:06]} 13. Be2 {[%emt 0:05:07]} c5 {[%emt 0:04:06]} 14. cxd5 {[%emt 0:04:10]} Qxe2+ {[%emt 0:03:07]} 0-1